[Event "RUDAR VI-GM 2024"]
[Site "Pozarevac"]
[Date "2024.02.15"]
[Round "9.2"]
[White "Volkov, Dmitriy"]
[Black "Sutormin, Danila"]
[Result "0-1"]
[ECO "B45"]
[WhiteElo "2268"]
[BlackElo "2353"]
[Annotator "TA"]
[PlyCount "156"]
[EventDate "2024.02.12"]
[EventType "tourn"]
[EventCountry "SRB"]
[SourceTitle "playchess.com"]
[Source "ChessBase"]
[SourceQuality "1"]
[TimeControl "5400+30"]

{[%evp 60,156,-26,-27,-24,-32,-26,-25,0,-14,-23,-22,-22,-31,0,0,0,0,0,0,0,0,0,-31,0,-52,0,-24,0,-11,0,-7,0,-28,-27,-65,-18,-56,-29,-60,-41,-65,-21,-12,-6,-14,0,-16,0,0,0,0,-3,-41,-25,-16,0,0,0,0,0,0,0,0,0,-70,-58,-102,-127,-126,-16,-18,-16,-20,0,-15,-15,-15,-13,-13,-11,-16,0,-6,0,-15,0,0,0,-8,0,0,0,-8,-8,-8,-8,-73,-72]} 1. e4 {[%emt 0:00:02]} c5 {[%emt 0:09:51]} 2. Nf3 {[%emt 0:00:04]} e6 {[%emt 0:00:08]} 3. d4 {[%emt 0:00:04]} cxd4 {[%emt 0:00:05]} 4. Nxd4 {[%emt 0:00:03]} Nf6 {[%emt 0:00:27]} 5. Nc3 {[%emt 0:00:05]} Nc6 {[%emt 0:00:03]} 6. Ndb5 {[%emt 0:00:06]} Bc5 {[%emt 0:00:09]} 7. Bf4 {[%emt 0:00:09]} O-O {[%emt 0:00:07] B45: Sizilianisch (Klassisches System).} 8. Bc7 {[%emt 0:00:15]} Qe7 {[%emt 0:00:05]} 9. Bd6 {[%emt 0:00:05]} Bxd6 {[%emt 0:00:08]} 10. Qxd6 {[%emt 0:00:07]} Qd8 {[%emt 0:00:05]} 11. Nc7 {[%emt 0:00:25]} Rb8 {[%emt 0:00:05]} 12. Be2 {[%emt 0:00:08]} b5 {[%emt 0:00:20]} 13. e5 {[%emt 0:00:24]} Ne8 $1 {[%emt 0:00:42] 13...Ne8 punktet besser als 13...b4.} 14. Nxe8 {[%emt 0:00:06]} Rxe8 {[%emt 0:02:02]} 15. O-O {[%emt 0:02:57]} b4 {[%emt 0:09:46]} 16. Ne4 {[%emt 0:00:11]} Bb7 {[%emt 0:00:24]} 17. Qc5 {[%emt 0:07:03]} Rf8 {[%emt 0:04:05]} 18. Bd3 {[%emt 0:12:26]} Ba8 {[%emt 0:02:57]} 19. Rfe1 $146 {[%emt 0:07:41]} ({Predecessor:} 19. f4 Qb6 20. Qxb6 Rxb6 21. Rad1 Ne7 22. Kf2 f6 23. exf6 gxf6 24. Nc5 Bc6 25. f5 exf5 {0-1 Zheng,H (2105)-Xie,F (2244) Piraeus IM 12 2023 (8)}) 19... Qb6 {[%emt 0:29:52]} 20. Qxb6 {[%emt 0:04:31]} Rxb6 {[%emt 0:03:35]} 21. f4 {[%emt 0:00:30]} Ne7 {[%emt 0:04:49]} 22. Nc5 {[%emt 0:18:24]} Rc8 {[%emt 0:03:33]} 23. Nb3 {[%emt 0:01:30]} Bd5 {[%emt 0:03:09]} 24. Re2 {[%emt 0:02:21]} f6 {[%emt 0:05:34]} 25. g3 {[%emt 0:05:14]} f5 {[%emt 0:04:03]} 26. Nd2 {[%emt 0:01:50]} Nc6 {[%emt 0:00:53]} 27. c4 {[%emt 0:07:33]} bxc3 {[%emt 0:00:25]} 28. bxc3 {[%emt 0:00:02]} Na5 {[%emt 0:00:44]} 29. Rc1 {[%emt 0:03:44]} Rb2 {[%emt 0:03:22]} 30. Nf1 {[%emt 0:00:46]} Rxe2 {[%emt 0:01:03]} 31. Bxe2 {[%emt 0:00:03]} Rb8 {[%emt 0:00:11]} 32. Rc2 {[%emt 0:03:43]} Rb1 {[%emt 0:02:01]} 33. Kf2 {[%emt 0:00:40]} Nb7 {[%emt 0:02:30]} 34. Nd2 {[%emt 0:07:42]} Rh1 {[%emt 0:02:02]} 35. Nf1 {[%emt 0:00:58]} Nc5 {[%emt 0:00:10]} 36. Bb5 {[%emt 0:01:43]} Kf8 {[%emt 0:02:34]} 37. Ke3 $1 {[%emt 0:00:49]} Ke7 {[%emt 0:00:41]} 38. Kd4 {[%emt 0:01:38]} Nb7 {[%emt 0:01:35]} 39. Ne3 $1 {[%emt 0:02:43]} Be4 {[%emt 0:00:17]} 40. Rb2 {[%emt 0:00:29]} h6 {[%emt 0:01:36]} 41. Bd3 {[%emt 0:01:59]} Bc6 {[%emt 0:00:13]} 42. Bb5 {[%emt 0:02:23]} (42. Nc4 $11) 42... Be4 {[%emt 0:00:41]} 43. Bd3 {[%emt 0:00:05]} Bf3 {[%emt 0:04:58]} 44. Bf1 {[%emt 0:03:44]} Nd8 {[%emt 0:00:00]} 45. Kc5 {[%emt 0:00:29]} g5 {[%emt 0:00:00]} 46. Rd2 {[%emt 0:01:22]} Bc6 {[%emt 0:00:00]} 47. Rb2 {[%emt 0:00:48]} Rg1 {[%emt 0:00:00]} (47... h5 $15) 48. Kd4 {[%emt 0:00:26]} Be4 {[%emt 0:00:11]} 49. Kc5 {[%emt 0:00:09]} Nc6 {[%emt 0:00:37]} 50. Rd2 {[%emt 0:00:23]} gxf4 {[%emt 0:00:18]} 51. gxf4 {[%emt 0:00:02]} h5 {[%emt 0:00:16]} 52. Rf2 {[%emt 0:00:59]} h4 {[%emt 0:00:30]} 53. Rd2 {[%emt 0:00:18]} Rg8 {[%emt 0:01:19]} 54. Nc4 {[%emt 0:00:26]} Bd5 {[%emt 0:01:15]} (54... Rg4 $5 55. Rf2 $8 Nd8 $11) 55. Ne3 {[%emt 0:00:27]} Bf3 {[%emt 0:00:06]} 56. Bg2 {[%emt 0:01:05]} (56. Nc4 $5) 56... Rc8 {[%emt 0:00:16]} ({Vergiftet wäre} 56... Nxe5 $2 57. fxe5 Bh5 58. Bf1 $18) 57. Kb5 {[%emt 0:00:06]} Bh5 {[%emt 0:01:34]} 58. Nc4 {[%emt 0:00:29]} Nb8 {[%emt 0:00:31]} 59. Bf1 {[%emt 0:00:37]} Bf3 {[%emt 0:00:08]} 60. Bg2 {[%emt 0:00:29]} Bg4 {[%emt 0:00:50]} 61. Kb4 {[%emt 0:01:29]} Na6+ {[%emt 0:00:15]} 62. Kb3 {[%emt 0:00:20]} (62. Kb5 $1 $11) 62... h3 $15 {[%emt 0:00:34]} 63. Bf1 {[%emt 0:00:33]} Nc5+ {[%emt 0:00:01]} 64. Kc2 {[%emt 0:00:15]} Bf3 {[%emt 0:00:46]} ({Günstiger ist} 64... Ne4 $17 65. Rd4 Bh5) 65. Nd6 $1 $11 {[%emt 0:00:28]} Rh8 {[%emt 0:00:09]} 66. Rf2 {[%emt 0:00:30]} Bc6 {[%emt 0:00:02]} 67. c4 {[%emt 0:00:43]} a5 {[%emt 0:01:27]} 68. Kc3 {[%emt 0:00:42]} Ne4+ {[%emt 0:00:43]} 69. Nxe4 {[%emt 0:00:07]} Bxe4 {[%emt 0:00:01]} 70. Kd4 {[%emt 0:00:21]} a4 {[%emt 0:00:21]} 71. Rb2 {[%emt 0:00:51]} Bc6 {[%emt 0:00:14]} 72. Rc2 {[%emt 0:00:57]} Be4 {[%emt 0:01:14]} 73. Rb2 {[%emt 0:00:12]} Rh4 {[%emt 0:00:12]} 74. Rf2 {[%emt 0:00:14]} a3 {[%emt 0:00:25]} 75. Kc3 {[%emt 0:01:27]} Bg2 {[%emt 0:00:51]} 76. Be2 {[%emt 0:00:44]} d6 {[%emt 0:00:27]} 77. exd6+ {[%emt 0:01:55]} Kxd6 {[%emt 0:00:01]} 78. Kb4 {[%emt 0:00:01]} (78. Bd3 $1 $11 {hält das Gleichgewicht.}) 78... e5 {[%emt 0:00:27]} 0-1

[Event "RUDAR VI-GM 2024"]
[Site "Pozarevac"]
[Date "2024.02.15"]
[Round "9.4"]
[White "Garifullina, Leya"]
[Black "Zemlyanskii, Ivan"]
[Result "1/2-1/2"]
[ECO "D12"]
[WhiteElo "2422"]
[BlackElo "2492"]
[Annotator "TA"]
[PlyCount "28"]
[EventDate "2024.02.12"]
[EventType "tourn"]
[EventCountry "SRB"]
[SourceTitle "playchess.com"]
[Source "ChessBase"]
[SourceQuality "1"]
[TimeControl "5400+30"]

{[%evp 11,28,32,32,26,20,22,37,10,13,8,8,16,10,0,0,-5,0,-21,0]} 1. d4 {[%emt 0:05:50]} d5 {[%emt 0:00:05]} 2. c4 {[%emt 0:00:23]} c6 {[%emt 0:00:04]} 3. Nf3 {[%emt 0:00:05]} Nf6 {[%emt 0:00:04]} 4. e3 {[%emt 0:00:05]} Bf5 {[%emt 0:00:04]} 5. Nc3 {[%emt 0:00:05]} e6 {[%emt 0:00:03]} 6. Nh4 {[%emt 0:00:06]} Bg6 {[%emt 0:00:03]} 7. Qb3 {[%emt 0:00:06]} Qc7 {[%emt 0:00:04]} 8. Nxg6 {[%emt 0:00:09]} hxg6 {[%emt 0:00:03]} 9. Bd2 {[%emt 0:00:08] White is slightly better.} Nbd7 {[%emt 0:00:02] The position is equal.} 10. cxd5 {[%emt 0:00:33]} exd5 {[%emt 0:00:03]} 11. O-O-O {[%emt 0:00:54]} a5 {[%emt 0:00:16]} 12. Qc2 {[%emt 0:00:49]} Rxh2 {[%emt 0:00:32]} 13. Rxh2 {[%emt 0:00:04]} Qxh2 {[%emt 0:00:04]} 14. a3 {[%emt 0:01:50]} Nb6 {[%emt 0:00:38] A rather calm draw.   Weighted Error Value: White=0.09 (flawless) /Black=0.01 (flawless) .  Inaccurate:     	White=1     	---        OK:         	White=1     	Black=2} 1/2-1/2

[Event "RUDAR VI-GM 2024"]
[Site "Pozarevac"]
[Date "2024.02.15"]
[Round "9.5"]
[White "Ahmadzada, Ahmad"]
[Black "Apaar Saxena"]
[Result "1-0"]
[ECO "C50"]
[WhiteElo "2501"]
[BlackElo "2150"]
[Annotator "TA"]
[PlyCount "79"]
[EventDate "2024.02.12"]
[EventType "tourn"]
[EventCountry "SRB"]
[SourceTitle "playchess.com"]
[Source "ChessBase"]
[SourceQuality "1"]
[TimeControl "5400+30"]

{[%evp 9,79,-15,84,0,31,28,29,20,37,24,38,22,32,29,29,0,8,0,49,45,45,42,70,54,75,72,92,89,95,75,104,112,235,231,218,234,245,242,240,226,487,512,481,526,607,610,631,580,550,476,721,705,695,675,737,676,905,910,897,889,956,939,1246,1305,29985,29986,29983,1976,29997,29998,29998,29999]} 1. e4 {[%emt 0:01:14]} e5 {[%emt 0:00:07]} 2. Nf3 {[%emt 0:00:29]} Nc6 {[%emt 0:00:08]} 3. Bc4 {[%emt 0:00:09]} d6 {[%emt 0:00:05]} 4. d4 {[%emt 0:00:19]} Nf6 {[%emt 0:00:03]} 5. c3 {[%emt 0:10:25]} Bg4 {[%emt 0:00:38] [#]} (5... Nxe4 $11 6. Bd5 Nf6 7. Bxc6+ bxc6) 6. Be3 {[%emt 0:07:51]} (6. Qb3 $1 $16) 6... Be7 {[%emt 0:04:33]} (6... Nxe4 7. Qb3 Na5 8. Bxf7+ Ke7 9. Qb4 (9. Qd5 Nf6 $14) 9... Kxf7 10. Qxa5 $14) 7. d5 {[%emt 0:04:35]} Nb8 {[%emt 0:00:28]} 8. Bd3 {[%emt 0:05:21] White has an edge.} O-O {[%emt 0:02:01]} 9. c4 {[%emt 0:01:42]} a5 {[%emt 0:02:52]} 10. Nc3 {[%emt 0:02:28]} Na6 {[%emt 0:01:18]} 11. Be2 {[%emt 0:05:13]} Nd7 {[%emt 0:01:38]} 12. Nd2 {[%emt 0:03:38]} Bxe2 {[%emt 0:00:12]} 13. Qxe2 {[%emt 0:00:22]} Nac5 {[%emt 0:01:04] [#]} (13... Bg5 $11) 14. h4 $1 $14 {[%emt 0:02:36]} c6 {[%emt 0:05:58]} (14... a4 15. g3) 15. g3 {[%emt 0:01:34]} Qb6 {[%emt 0:02:08]} 16. Rb1 {[%emt 0:01:59]} Qd8 {[%emt 0:05:32]} 17. b3 {[%emt 0:00:51]} f5 {[%emt 0:03:37]} 18. exf5 {[%emt 0:01:10]} Rxf5 {[%emt 0:00:04]} 19. a3 {[%emt 0:01:13][%cal Ba2a3,Ba3b4][%mdl 32]} cxd5 {[%emt 0:06:02]} 20. Nxd5 {[%emt 0:01:18]} e4 {[%emt 0:00:49] Loses the game.} (20... Nb6 $16) 21. O-O $18 {[%emt 0:03:29]} Nf6 {[%emt 0:05:28]} 22. Nxf6+ {[%emt 0:03:56]} Bxf6 {[%emt 0:00:49] [#]} 23. b4 $1 {[%emt 0:00:59]} axb4 {[%emt 0:10:59]} 24. axb4 {[%emt 0:00:11]} Nd3 {[%emt 0:05:55]} (24... Na4 {keeps fighting.} 25. Nxe4 Nc3 26. Nxc3 Bxc3) 25. Nxe4 {[%emt 0:01:27]} Ne5 {[%emt 0:00:59]} 26. f4 {[%emt 0:04:37]} Nc6 {[%emt 0:00:11]} 27. g4 {[%emt 0:01:07]} d5 {[%emt 0:12:37][%cal Bd6d5,Bd5d4,Bd4d3,Bd3e2][%mdl 32]} 28. Ng3 {[%emt 0:02:20]} Nd4 {[%emt 0:01:25]} 29. Qd2 {[%emt 0:03:19]} Ra3 {[%emt 0:05:06]} (29... dxc4 $142 30. Nxf5 (30. gxf5 Ra3 $18) 30... c3) 30. Nxf5 {[%emt 0:02:13]} Nxf5 {[%emt 0:00:26]} 31. gxf5 {[%emt 0:00:08]} d4 {[%emt 0:00:04]} 32. Bf2 {[%emt 0:00:55]} Bxh4 {[%emt 0:01:53]} 33. Ra1 {[%emt 0:01:33]} Rh3 {[%emt 0:00:35]} 34. Rfe1 {[%emt 0:00:48]} Rf3 {[%emt 0:00:29]} 35. Re2 {[%emt 0:02:01]} d3 {[%emt 0:00:50]} 36. Kg2 {[%emt 0:00:23] Strongly threatening Bxh4.} Qf6 {[%emt 0:02:19]} 37. Ra8+ {[%emt 0:00:09]} Kf7 {[%emt 0:00:01]} 38. Kxf3 {[%emt 0:00:16]} (38. Bc5 $142 Rg3+ 39. Kh2 Qxf5 40. Rf8+ Kg6 41. Rxf5 Kxf5 42. Re5+ Kg4 43. Qd1+ Rf3 44. Be3 (44. Kg2 Kxf4 45. Qa1 Rg3+ 46. Kh2 Rh3+ 47. Kxh3 Bf2 48. Bxf2 h6 49. Bg3+ Kf3 50. Qh1#)) 38... dxe2 {[%emt 0:00:09]} 39. Qd5+ {[%emt 0:00:03]} Ke7 {[%emt 0:00:13]} 40. Bc5+ {[%emt 0:00:03] Weighted Error Value: White=0.13 (very precise) /Black=0.66.  Mistake:       	---       	Black=4      Inaccurate:     	---       	Black=3      OK:         	White=9     	Black=6      Best:        	White=3     	---        Strong:       	White=1     	---} 1-0